[Event "Championnat du monde jeunes U10"]
[Date "2024.11.15"]
[White "Park, Jaeik"]
[Black "Todmunkh, Turbat"]
[WhiteElo "1477"]
[BlackElo "1773"]
[Round "1.12"]
[Result "0-1"]
[TimeControl "5400+30"]

1. e4 {[%clk 1:30:57]} 1... e5 {[%clk 1:30:47]} 2. Nf3 {[%clk 1:31:22]} 2... Nc6
{[%clk 1:31:08]} 3. Bb5 {[%clk 1:31:41]} 3... a6 {[%clk 1:31:28]} 4. Ba4 {[%clk
1:32:01]} 4... Nf6 {[%clk 1:31:47]} 5. Qe2 {[%clk 1:32:22]} 5... b5 {[%clk
1:31:59]} 6. Bb3 {[%clk 1:32:43]} 6... Be7 {[%clk 1:31:39]} 7. c3 {[%clk
1:32:55]} 7... O-O {[%clk 1:31:24]} 8. O-O {[%clk 1:33:09]} 8... d6 {[%clk
1:31:05]} 9. Rd1 {[%clk 1:33:23]} 9... Na5 {[%clk 1:30:53]} 10. Bc2 {[%clk
1:33:38]} 10... c5 {[%clk 1:31:06]} 11. d3 {[%clk 1:33:54]} 11... Re8 {[%clk
1:31:13]} 12. Nbd2 {[%clk 1:33:43]} 12... Bf8 {[%clk 1:31:11]} 13. Nf1 {[%clk
1:33:32]} 13... h6 {[%clk 1:29:00]} 14. Ng3 {[%clk 1:33:18]} 14... Nc6 {[%clk
1:25:22]} 15. h3 {[%clk 1:31:14]} 15... Qc7 {[%clk 1:16:58]} 16. Nh4 {[%clk
1:30:53]} 16... g6 {[%clk 1:01:00]} 17. Be3 {[%clk 1:19:50]} 17... d5 {[%clk
0:46:16]} 18. Qf3 {[%clk 1:17:23]} 18... dxe4 {[%clk 0:43:00]} 19. Nxe4 {[%clk
1:16:27]} 19... Nxe4 {[%clk 0:42:51]} 20. Qxe4 {[%clk 1:16:38]} 20... Bb7 {[%clk
0:42:04]} 21. Qg4 {[%clk 1:16:19]} 21... Bc8 {[%clk 0:34:03]} 22. Qg3 {[%clk
1:15:34]} 22... Be6 {[%clk 0:33:00]} 23. Rac1 {[%clk 1:13:30]} 23... Qe7 {[%clk
0:28:20]} 24. d4 {[%clk 1:12:30]} 24... cxd4 {[%clk 0:28:27]} 25. cxd4 {[%clk
1:12:40]} 25... exd4 {[%clk 0:28:48]} 26. Bxd4 {[%clk 1:12:17]} 26... Nxd4
{[%clk 0:28:16]} 27. Rxd4 {[%clk 1:12:38]} 27... Bg7 {[%clk 0:28:37]} 28. Re4
{[%clk 1:10:09]} 28... Rac8 {[%clk 0:28:44]} 29. Re2 {[%clk 1:05:28]} 29... Qc7
{[%clk 0:24:55]} 30. Qxc7 {[%clk 1:03:09]} 30... Rxc7 {[%clk 0:24:21]} 31. b3
{[%clk 1:01:14]} 31... Rec8 {[%clk 0:23:43]} 32. Nxg6 {[%clk 0:59:35]} 32...
fxg6 {[%clk 0:21:46]} 33. Rxe6 {[%clk 0:59:50]} 33... Rxc2 {[%clk 0:22:03]} 34.
Rd1 {[%clk 0:56:22]} 34... Rc1 {[%clk 0:21:58]} 35. Rxc1 {[%clk 0:56:06]} 35...
Rxc1+ {[%clk 0:21:09]} 36. Kh2 {[%clk 0:56:30]} 36... a5 {[%clk 0:21:28]} 37.
Rxg6 {[%clk 0:56:33]} 37... Rc2 38. f4 {[%clk 0:55:32]} 38... Rxa2 {[%clk
0:22:05]} 39. Rb6 {[%clk 0:55:42]} 39... b4 {[%clk 0:22:24]} 40. f5 {[%clk
0:53:59]} 40... Be5+ {[%clk 0:22:10]} 41. Kh1 {[%clk 0:53:03]} 41... Ra1# {[%clk
0:21:38]} 0-1

[Variant "Standard"]
[Site "Europe Echecs"]

[Event "Championnat du monde jeunes U10"]
[Date "2024.11.15"]
[White "Prokhorov, Makar"]
[Black "Shrubok, Herman"]
[WhiteElo "1771"]
[BlackElo "1477"]
[Round "1.13"]
[Result "0-1"]
[TimeControl "5400+30"]

1. e4 {[%clk 1:30:58]} 1... c5 {[%clk 1:30:44]} 2. Nf3 {[%clk 1:31:24]} 2... e6
{[%clk 1:30:44]} 3. d4 {[%clk 1:31:40]} 3... cxd4 {[%clk 1:31:03]} 4. Nxd4
{[%clk 1:31:58]} 4... Nf6 {[%clk 1:31:12]} 5. Bd3 {[%clk 1:32:06]} 5... Nc6
{[%clk 1:31:06]} 6. Be3 {[%clk 1:31:43]} 6... d5 {[%clk 1:29:58]} 7. exd5 {[%clk
1:31:05]} 7... Nxd5 {[%clk 1:30:07]} 8. Nxc6 {[%clk 1:30:33]} 8... bxc6 {[%clk
1:30:16]} 9. Be4 {[%clk 1:30:51]} 9... Bb7 {[%clk 1:25:58]} 10. Bd4 {[%clk
1:21:43]} 10... c5 {[%clk 1:21:28]} 11. Be5 {[%clk 1:18:36]} 11... Qb6 {[%clk
1:19:18]} 12. c4 {[%clk 1:05:26]} 12... Nb4 {[%clk 1:16:32]} 13. Bxb7 {[%clk
1:01:03]} 13... Qxb7 {[%clk 1:16:39]} 14. O-O {[%clk 0:59:03]} 14... Be7 {[%clk
1:14:01]} 15. Qa4+ {[%clk 0:54:47]} 15... Qd7 {[%clk 1:12:53]} 16. Qxd7+ {[%clk
0:52:45]} 16... Kxd7 {[%clk 1:12:57]} 17. Rd1+ {[%clk 0:52:16]} 17... Kc6 {[%clk
1:07:39]} 18. Nc3 {[%clk 0:51:12]} 18... f6 {[%clk 1:03:42]} 19. Bg3 {[%clk
0:47:47]} 19... Rhd8 {[%clk 0:59:44]} 20. a3 {[%clk 0:43:54]} 20... Nc2 {[%clk
0:59:30]} 21. Rac1 {[%clk 0:42:34]} 21... Nd4 {[%clk 0:59:25]} 22. f3 {[%clk
0:38:34]} 22... Bd6 {[%clk 0:57:22]} 23. Bxd6 {[%clk 0:38:09]} 23... Rxd6 {[%clk
0:57:15]} 24. Nb5 {[%clk 0:38:14]} 24... Rd7 {[%clk 0:57:16]} 25. Nxd4+ {[%clk
0:37:53]} 25... Rxd4 {[%clk 0:57:25]} 26. Rxd4 {[%clk 0:38:17]} 26... cxd4
{[%clk 0:57:52]} 27. b4 {[%clk 0:38:20]} 27... a5 {[%clk 0:57:31]} 28. Rc2
{[%clk 0:34:09]} 28... axb4 {[%clk 0:57:09]} 29. axb4 {[%clk 0:34:19]} 29... Ra4
{[%clk 0:57:02]} 30. Rb2 {[%clk 0:34:31]} 30... e5 {[%clk 0:55:52]} 31. Kf2
{[%clk 0:34:06]} 31... Ra3 {[%clk 0:55:34]} 32. Kg3 {[%clk 0:19:03]} 32... Rc3
{[%clk 0:55:19]} 33. b5+ {[%clk 0:17:54]} 33... Kb6 {[%clk 0:54:28]} 34. Rb4
{[%clk 0:17:44]} 34... Ra3 {[%clk 0:54:43]} 35. Kg4 {[%clk 0:10:42]} 35... d3
{[%clk 0:54:12]} 36. c5+ {[%clk 0:10:40]} 36... Kxc5 {[%clk 0:54:30]} 37. b6
{[%clk 0:10:43]} 37... Ra8 {[%clk 0:54:53]} 38. b7 {[%clk 0:10:34]} 38... Rb8
{[%clk 0:55:15]} 39. Rb1 {[%clk 0:10:56]} 39... Kc4 {[%clk 0:55:31]} 40. Kg3
{[%clk 0:10:55]} 40... d2 {[%clk 0:55:43]} 41. Kf2 {[%clk 0:09:40]} 41... Rxb7
{[%clk 0:56:00]} 42. Rd1 {[%clk 0:09:46]} 42... Kd3 {[%clk 0:56:15]} 43. Ra1
{[%clk 0:09:44]} 43... Rc7 {[%clk 0:56:35]} 44. Ra3+ {[%clk 0:08:18]} 44... Rc3
{[%clk 0:56:57]} 45. Ra8 {[%clk 0:08:16]} 45... Kc2 {[%clk 0:56:52]} 46. Ra2+
{[%clk 0:08:34]} 46... Kc1 {[%clk 0:57:14]} 47. Ra1+ {[%clk 0:08:58]} 47... Kb2
{[%clk 0:57:27]} 48. Rd1 {[%clk 0:09:25]} 48... Kc2 49. Ra1 {[%clk 0:09:13]}
49... d1=Q {[%clk 0:57:49]} 50. Rxd1 {[%clk 0:09:37]} 50... Kxd1 {[%clk
0:58:14]} 51. h3 {[%clk 0:09:40]} 51... f5 {[%clk 0:58:40]} 52. Kg3 {[%clk
0:09:52]} 52... e4 {[%clk 0:59:04]} 53. Kf4 {[%clk 0:10:18]} 53... e3 {[%clk
0:59:29]} 54. Kxf5 {[%clk 0:10:42]} 54... e2 {[%clk 0:59:53]} 55. Ke6 {[%clk
0:11:08]} 55... e1=Q+ {[%clk 1:00:17]} 56. Kd5 {[%clk 0:11:19]} 56... Qe7 {[%clk
0:59:50]} 57. Kd4 {[%clk 0:11:40]} 57... Kd2 {[%clk 1:00:08]} 58. Kd5 {[%clk
0:12:02]} 58... Kd3 {[%clk 1:00:31]} 59. g3 {[%clk 0:12:13]} 59... Rc5# {[%clk
1:00:55]} 0-1

[Variant "Standard"]
[Site "Europe Echecs"]

[Event "Championnat du monde jeunes U10"]
[Date "2024.11.15"]
[White "Loberti, Tommaso"]
[Black "Anetov, Amirzhan"]
[WhiteElo "1474"]
[BlackElo "1767"]
[Round "1.14"]
[Result "0-1"]
[TimeControl "5400+30"]

1. e4 {[%clk 1:31:00]} 1... e5 {[%clk 1:30:54]} 2. Nf3 {[%clk 1:31:23]} 2... Nc6
{[%clk 1:31:23]} 3. Bb5 {[%clk 1:31:42]} 3... f5 {[%clk 1:31:48]} 4. d3 {[%clk
1:31:51]} 4... fxe4 {[%clk 1:32:13]} 5. dxe4 {[%clk 1:31:23]} 5... Nf6 6. Qe2
{[%clk 1:21:40]} 6... d6 {[%clk 1:29:17]} 7. Nc3 {[%clk 1:15:25]} 7... a6 8.
Bxc6+ {[%clk 1:10:38]} 8... bxc6 {[%clk 1:22:43]} 9. h3 {[%clk 1:08:23]} 9...
Be6 {[%clk 1:20:23]} 10. Bg5 {[%clk 1:06:08]} 10... Be7 {[%clk 1:20:17]} 11. Rd1
{[%clk 1:02:51]} 11... Qb8 {[%clk 1:13:05]} 12. Rb1 {[%clk 0:55:12]} 12... O-O
{[%clk 1:08:26]} 13. O-O {[%clk 0:52:47]} 13... Qe8 {[%clk 1:07:40]} 14. Qe3
{[%clk 0:48:19]} 14... Nh5 {[%clk 1:05:58]} 15. Bxe7 {[%clk 0:46:51]} 15... Qxe7
{[%clk 1:06:24]} 16. Qg5 {[%clk 0:45:58]} 16... Qf7 {[%clk 1:06:50]} 17. Kh2
{[%clk 0:42:40]} 17... Nf4 {[%clk 1:07:03]} 18. Ng1 {[%clk 0:41:18]} 18... Bc4
{[%clk 1:04:54]} 19. Rfe1 {[%clk 0:39:17]} 19... Ne6 {[%clk 1:05:17]} 20. Qg3
{[%clk 0:36:34]} 20... Nd4 {[%clk 1:04:58]} 21. Rbc1 {[%clk 0:33:08]} 21... Qxf2
{[%clk 1:02:41]} 22. Qxf2 {[%clk 0:33:09]} 22... Rxf2 {[%clk 1:03:06]} 23. b3
{[%clk 0:31:58]} 23... Be6 {[%clk 1:03:13]} 24. Nce2 {[%clk 0:28:40]} 24... Raf8
{[%clk 0:58:13]} 25. Nxd4 {[%clk 0:26:28]} 25... exd4 {[%clk 0:58:19]} 26. Red1
{[%clk 0:25:36]} 26... c5 {[%clk 0:58:43]} 27. Kg3 {[%clk 0:23:46]} 27... d5
{[%clk 0:58:02]} 28. Nf3 {[%clk 0:21:20]} 28... Re2 {[%clk 0:57:38]} 29. e5
{[%clk 0:21:05]} 29... h5 {[%clk 0:49:35]} 30. a4 {[%clk 0:17:49]} 30... h4+
{[%clk 0:49:11]} 31. Kh2 {[%clk 0:17:27]} 31... Rxf3 {[%clk 0:49:33]} 0-1

[Variant "Standard"]
[Site "Europe Echecs"]

[Event "Championnat du monde jeunes U10"]
[Date "2024.11.15"]
[White "Montaigu Dupont, Arthur"]
[Black "Osmolovskii, Nikita"]
[WhiteElo "1767"]
[BlackElo "1468"]
[Round "1.15"]
[Result "0-1"]
[TimeControl "5400+30"]

1. e4 {[%clk 1:30:58]} 1... e5 {[%clk 1:30:55]} 2. Nf3 {[%clk 1:31:26]} 2... d6
{[%clk 1:31:18]} 3. d4 {[%clk 1:31:44]} 3... exd4 {[%clk 1:31:41]} 4. Nxd4
{[%clk 1:31:52]} 4... Nf6 {[%clk 1:32:02]} 5. Nc3 {[%clk 1:32:16]} 5... Be7
{[%clk 1:32:23]} 6. h3 {[%clk 1:31:32]} 6... O-O {[%clk 1:32:43]} 7. Bd3 {[%clk
1:31:56]} 7... Re8 {[%clk 1:32:44]} 8. O-O {[%clk 1:31:55]} 8... Nbd7 {[%clk
1:32:59]} 9. f3 {[%clk 1:27:12]} 9... Ne5 {[%clk 1:31:05]} 10. Bb5 {[%clk
1:27:17]} 10... c6 {[%clk 1:31:00]} 11. Ba4 {[%clk 1:27:40]} 11... b5 {[%clk
1:29:27]} 12. Bb3 {[%clk 1:28:04]} 12... c5 {[%clk 1:29:55]} 13. Ndxb5 {[%clk
1:28:06]} 13... Ba6 {[%clk 1:29:32]} 14. Re1 {[%clk 1:22:04]} 14... Qb6 {[%clk
1:27:19]} 15. Ba4 {[%clk 1:18:52]} 15... Reb8 {[%clk 1:15:38]} 16. f4 {[%clk
1:14:46]} 16... Ng6 {[%clk 1:13:28]} 17. e5 {[%clk 1:14:46]} 17... Ne8 18. Nd5
{[%clk 1:12:07]} 18... Qb7 {[%clk 1:06:17]} 19. Nxe7+ {[%clk 1:12:15]} 19...
Qxe7 {[%clk 1:06:15]} 20. exd6 {[%clk 1:11:09]} 20... Qd8 {[%clk 1:05:07]} 21.
d7 {[%clk 1:09:01]} 21... Nf6 {[%clk 1:02:23]} 22. Nd6 {[%clk 1:07:35]} 22...
Qf8 {[%clk 0:57:10]} 23. Bc6 {[%clk 1:05:33]} 23... Rb6 {[%clk 0:51:58]} 24.
Bxa8 {[%clk 1:04:07]} 24... Rxd6 {[%clk 0:51:02]} 25. Qf3 {[%clk 1:04:05]} 25...
Rxd7 {[%clk 0:50:45]} 26. Bc6 {[%clk 1:02:57]} 26... Rc7 {[%clk 0:47:18]} 27. g3
{[%clk 1:02:09]} 27... Qd6 {[%clk 0:45:11]} 28. Ba8 {[%clk 0:58:43]} 28... Qd4+
{[%clk 0:35:33]} 29. Qe3 {[%clk 0:57:50]} 29... Re7 {[%clk 0:35:13]} 30. c3
{[%clk 0:55:06]} 30... Rxe3 {[%clk 0:33:22]} 31. Bxe3 {[%clk 0:55:29]} 31... Qd8
{[%clk 0:32:57]} 32. Bf3 {[%clk 0:55:53]} 32... Qb6 {[%clk 0:31:16]} 33. b4
{[%clk 0:56:12]} 33... Bb7 {[%clk 0:29:34]} 34. Bxc5 {[%clk 0:56:35]} 34... Qa6
{[%clk 0:29:19]} 35. Re6 {[%clk 0:56:35]} 35... Qb6 {[%clk 0:29:19]} 36. Rd6
{[%clk 0:56:35]} 36... Qxd6 {[%clk 0:29:19]} 0-1

[Variant "Standard"]
[Site "Europe Echecs"]

[Event "Championnat du monde jeunes U10"]
[Date "2024.11.15"]
[White "McFadden, Oisin"]
[Black "Fattori Dittmar, Luca"]
[WhiteElo "1464"]
[BlackElo "1766"]
[Round "1.16"]
[Result "0-1"]
[TimeControl "5400+30"]

1. e4 {[%clk 1:30:30]} 1... e6 {[%clk 1:30:48]} 2. d4 {[%clk 1:31:23]} 2... d5
{[%clk 1:31:12]} 3. Nc3 {[%clk 1:31:43]} 3... dxe4 {[%clk 1:31:27]} 4. Nxe4
{[%clk 1:32:03]} 4... Nd7 {[%clk 1:31:48]} 5. Bc4 {[%clk 1:32:01]} 5... Ngf6
{[%clk 1:31:18]} 6. Nc3 {[%clk 1:32:00]} 6... b6 {[%clk 1:30:47]} 7. Nf3 {[%clk
1:32:11]} 7... Bb7 {[%clk 1:31:08]} 8. O-O {[%clk 1:31:46]} 8... c5 {[%clk
1:31:04]} 9. d5 {[%clk 1:31:56]} 9... exd5 {[%clk 1:29:45]} 10. Nxd5 {[%clk
1:31:34]} 10... Nxd5 {[%clk 1:29:44]} 11. Bxd5 {[%clk 1:31:52]} 11... Bxd5
{[%clk 1:29:33]} 12. Qxd5 {[%clk 1:32:18]} 12... Be7 {[%clk 1:29:30]} 13. Ne5
{[%clk 1:30:32]} 13... Nxe5 {[%clk 1:29:40]} 14. Qxe5 {[%clk 1:30:51]} 14... O-O
{[%clk 1:29:55]} 15. Re1 {[%clk 1:28:12]} 15... Bf6 {[%clk 1:27:51]} 16. Qg3
{[%clk 1:26:40]} 16... Re8 {[%clk 1:26:12]} 17. Rf1 {[%clk 1:25:56]} 17... Qd7
{[%clk 1:19:21]} 18. c3 {[%clk 1:25:35]} 18... Rad8 {[%clk 1:17:29]} 19. Be3
{[%clk 1:24:28]} 19... Qb5 {[%clk 1:13:36]} 20. Rab1 {[%clk 1:22:49]} 20... Rd3
{[%clk 1:07:21]} 21. Qg4 {[%clk 1:21:05]} 21... Red8 {[%clk 1:05:50]} 22. h3
{[%clk 1:18:05]} 22... Qd7 {[%clk 1:02:02]} 23. Qf4 Rc8 {[%clk 1:02:02]} 24. Qg4
Rd8 25. Qf4 Qd6 26. Qf5 Qd7 27. Qxd7 {[%clk 1:17:45]} 27... R8xd7 {[%clk
1:02:25]} 28. Rfe1 {[%clk 1:14:07]} 28... h6 {[%clk 1:00:24]} 29. Bf4 {[%clk
1:10:05]} 29... Kf8 {[%clk 0:59:48]} 30. Re3 {[%clk 1:07:24]} 30... g5 {[%clk
0:57:20]} 31. Rxd3 {[%clk 1:06:45]} 31... Rxd3 {[%clk 0:57:31]} 32. Be3 {[%clk
1:04:11]} 32... Be7 {[%clk 0:56:59]} 33. Rc1 {[%clk 1:03:01]} 33... f5 {[%clk
0:56:51]} 34. g3 {[%clk 1:02:00]} 34... Bd6 {[%clk 0:56:46]} 35. Rc2 {[%clk
0:56:57]} 35... Bxg3 {[%clk 0:56:02]} 36. Bxg5 {[%clk 0:55:38]} 36... hxg5
{[%clk 0:56:01]} 37. fxg3 {[%clk 0:55:43]} 37... Rxg3+ {[%clk 0:56:15]} 38. Kh2
{[%clk 0:55:58]} 38... f4 {[%clk 0:55:35]} 39. Rf2 {[%clk 0:54:40]} 39... Ke7
{[%clk 0:53:48]} 40. h4 {[%clk 0:54:49]} 40... Kf6 {[%clk 0:53:53]} 41. hxg5+
{[%clk 0:53:10]} 41... Kxg5 {[%clk 0:53:53]} 42. Rg2 {[%clk 0:53:17]} 42...
Rxg2+ {[%clk 0:54:00]} 43. Kxg2 {[%clk 0:53:31]} 43... Kg4 {[%clk 0:54:19]} 44.
c4 {[%clk 0:53:32]} 44... a6 {[%clk 0:51:51]} 45. a4 {[%clk 0:53:02]} 45... f3+
{[%clk 0:51:27]} 46. Kf2 {[%clk 0:53:17]} 46... Kf4 {[%clk 0:51:27]} 47. b3
{[%clk 0:53:31]} 47... Ke4 {[%clk 0:51:26]} 48. Kf1 {[%clk 0:52:21]} 48... Kd3
{[%clk 0:51:28]} 49. Kf2 {[%clk 0:50:46]} 49... Kc3 {[%clk 0:51:47]} 50. Kxf3
{[%clk 0:51:09]} 50... Kxb3 {[%clk 0:52:11]} 51. Ke3 {[%clk 0:51:34]} 51... Kxc4
{[%clk 0:52:23]} 52. Kd2 {[%clk 0:51:56]} 52... Kb4 {[%clk 0:52:46]} 53. a5
{[%clk 0:52:18]} 53... Kxa5 {[%clk 0:52:59]} 54. Kc3 {[%clk 0:52:34]} 54... Ka4
{[%clk 0:53:14]} 55. Kc4 {[%clk 0:52:08]} 55... b5+ {[%clk 0:53:18]} 56. Kc3
{[%clk 0:51:45]} 56... c4 {[%clk 0:53:35]} 57. Kb2 {[%clk 0:51:45]} 57... Kb4
{[%clk 0:54:01]} 58. Kc2 {[%clk 0:52:01]} 58... c3 {[%clk 0:54:24]} 59. Kb1
{[%clk 0:52:22]} 59... Kc4 {[%clk 0:54:29]} 60. Kc2 {[%clk 0:52:44]} 60... b4
{[%clk 0:54:53]} 61. Kc1 {[%clk 0:52:33]} 61... Kd3 {[%clk 0:55:01]} 62. Kd1
{[%clk 0:52:47]} 62... b3 {[%clk 0:55:12]} 63. Kc1 {[%clk 0:53:11]} 63... c2
{[%clk 0:55:13]} 64. Kb2 {[%clk 0:53:35]} 64... Kd2 {[%clk 0:55:20]} 65. Kxb3
{[%clk 0:53:52]} 65... c1=Q {[%clk 0:55:39]} 66. Ka2 {[%clk 0:53:27]} 66... Qc5
{[%clk 0:55:33]} 67. Kb3 {[%clk 0:53:35]} 67... Qc3+ {[%clk 0:55:45]} 68. Ka2
{[%clk 0:54:01]} 68... Qb4 {[%clk 0:55:59]} 69. Ka1 {[%clk 0:54:16]} 69... Kc1
{[%clk 0:56:11]} 70. Ka2 {[%clk 0:54:36]} 70... Qb2# {[%clk 0:56:08]} 0-1

[Variant "Standard"]
[Site "Europe Echecs"]

[Event "Championnat du monde jeunes U10"]
[Date "2024.11.15"]
[White "Katta, Sriansh"]
[Black "Vukashinovikj, Jovan"]
[WhiteElo "1766"]
[BlackElo "1454"]
[Round "1.17"]
[Result "1-0"]
[TimeControl "5400+30"]

1. e4 {[%clk 1:30:59]} 1... e5 {[%clk 1:30:54]} 2. Nf3 {[%clk 1:31:24]} 2... Nf6
{[%clk 1:31:19]} 3. Nxe5 {[%clk 1:31:48]} 3... Nc6 {[%clk 1:31:44]} 4. Nxc6
{[%clk 1:32:11]} 4... dxc6 {[%clk 1:32:06]} 5. d3 {[%clk 1:32:24]} 5... Bc5
{[%clk 1:32:15]} 6. Be2 {[%clk 1:32:49]} 6... Ng4 {[%clk 1:32:36]} 7. Bxg4
{[%clk 1:33:12]} 7... Qh4 {[%clk 1:32:59]} 8. Qf3 {[%clk 1:33:37]} 8... Bxg4
{[%clk 1:33:04]} 9. Qg3 {[%clk 1:34:00]} 9... Qh5 {[%clk 1:32:53]} 10. Nc3
{[%clk 1:32:23]} 10... O-O-O {[%clk 1:31:16]} 11. Bf4 {[%clk 1:30:41]} 11... Bd6
{[%clk 1:30:29]} 12. Bxd6 {[%clk 1:30:57]} 12... cxd6 {[%clk 1:30:49]} 13. f3
{[%clk 1:31:09]} 13... Be6 {[%clk 1:31:03]} 14. O-O-O {[%clk 1:30:59]} 14... Qa5
{[%clk 1:30:40]} 15. a3 {[%clk 1:27:39]} 15... Qb6 {[%clk 1:28:08]} 16. Rhe1
{[%clk 1:26:12]} 16... g6 {[%clk 1:24:17]} 17. f4 {[%clk 1:19:59]} 17... Rhe8
{[%clk 1:23:39]} 18. Qf3 {[%clk 1:17:46]} 18... f5 {[%clk 1:21:07]} 19. exf5
{[%clk 1:17:54]} 19... gxf5 {[%clk 1:21:18]} 20. d4 {[%clk 1:16:59]} 20... Bf7
{[%clk 1:19:53]} 21. Qd3 {[%clk 1:15:08]} 21... Bg6 {[%clk 1:19:25]} 22. h4
{[%clk 1:13:26]} 22... h5 {[%clk 1:19:34]} 23. Qg3 {[%clk 1:08:25]} 23... Rg8
{[%clk 1:18:38]} 24. Re7 {[%clk 1:03:40]} 24... Rd7 {[%clk 1:13:01]} 25. Rxd7
{[%clk 0:53:11]} 25... Kxd7 {[%clk 1:13:17]} 26. d5 {[%clk 0:49:55]} 26... c5
{[%clk 1:12:21]} 27. Re1 {[%clk 0:47:55]} 27... Qa5 {[%clk 1:09:44]} 28. Re6
{[%clk 0:46:58]} 28... Bf7 {[%clk 1:08:35]} 29. Qe3 {[%clk 0:46:32]} 29... Qd8
{[%clk 1:06:17]} 30. Nb5 {[%clk 0:45:52]} 30... Qxh4 {[%clk 1:06:21]} 31. Rxd6+
{[%clk 0:46:13]} 31... Kc8 {[%clk 1:06:39]} 32. Qxc5+ {[%clk 0:46:40]} 32... Kb8
{[%clk 1:06:56]} 33. Qxa7+ {[%clk 0:47:05]} 33... Kc8 {[%clk 1:07:17]} 34. Qa8#
{[%clk 0:47:34]} 1-0

[Variant "Standard"]
[Site "Europe Echecs"]

[Event "Championnat du monde jeunes U10"]
[Date "2024.11.15"]
[White "Button-Rabl, Jiban"]
[Black "Santoro, Marco Antonio"]
[WhiteElo "1435"]
[BlackElo "1765"]
[Round "1.18"]
[Result "1/2-1/2"]
[TimeControl "5400+30"]

1. e4 {[%clk 1:30:58]} 1... d6 {[%clk 1:30:28]} 2. d4 {[%clk 1:30:25]} 2... Nf6
{[%clk 1:30:47]} 3. Bd3 {[%clk 1:30:18]} 3... e5 {[%clk 1:31:02]} 4. c3 {[%clk
1:30:28]} 4... Nbd7 {[%clk 1:31:23]} 5. Bg5 {[%clk 1:30:00]} 5... h6 {[%clk
1:31:41]} 6. Bh4 {[%clk 1:30:18]} 6... Be7 {[%clk 1:31:58]} 7. Bg3 {[%clk
1:29:42]} 7... c6 {[%clk 1:32:07]} 8. Nd2 {[%clk 1:29:40]} 8... Qc7 {[%clk
1:32:21]} 9. Ngf3 {[%clk 1:29:07]} 9... a6 {[%clk 1:32:05]} 10. a4 {[%clk
1:28:30]} 10... b5 {[%clk 1:25:57]} 11. axb5 {[%clk 1:27:21]} 11... cxb5 {[%clk
1:25:35]} 12. dxe5 {[%clk 1:26:34]} 12... dxe5 {[%clk 1:25:33]} 13. Bxb5 {[%clk
1:25:08]} 13... O-O {[%clk 1:25:12]} 14. Bxd7 {[%clk 1:25:12]} 14... Nxd7 {[%clk
1:25:27]} 15. O-O {[%clk 1:25:04]} 15... Rd8 {[%clk 1:24:23]} 16. Qc2 {[%clk
1:23:18]} 16... Bb7 {[%clk 1:22:16]} 17. Rfd1 {[%clk 1:22:21]} 17... Rac8 {[%clk
1:18:48]} 18. Nf1 {[%clk 1:17:20]} 18... f6 19. Ne3 {[%clk 1:15:16]} 19... Nc5
{[%clk 1:13:51]} 20. Nd5 {[%clk 1:14:04]} 20... Bxd5 {[%clk 1:13:30]} 21. exd5
{[%clk 1:13:25]} 21... Qb7 {[%clk 1:11:09]} 22. b4 {[%clk 1:12:23]} 22... e4
{[%clk 1:05:51]} 23. bxc5 {[%clk 1:09:20]} 23... exf3 {[%clk 1:06:04]} 24. c6
{[%clk 1:09:01]} 24... Qb5 {[%clk 1:04:10]} 25. Qf5 {[%clk 1:05:42]} 25... Rxc6
{[%clk 0:58:38]} 26. Qe4 {[%clk 1:04:23]} 26... Qe2 {[%clk 0:56:09]} 27. Re1
{[%clk 1:02:59]} 27... Qxe4 {[%clk 0:55:53]} 28. Rxe4 {[%clk 1:03:15]} 28...
Rxd5 {[%clk 0:53:55]} 29. Rxe7 {[%clk 1:02:49]} 29... Rxc3 {[%clk 0:54:13]} 30.
gxf3 {[%clk 1:02:46]} 30... Rxf3 {[%clk 0:54:19]} 31. Kg2 {[%clk 1:02:55]} 31...
Rff5 {[%clk 0:54:13]} 32. Rxa6 {[%clk 1:02:44]} 32... Rg5 {[%clk 0:54:06]} 33.
h4 {[%clk 1:02:07]} 33... Rg6 {[%clk 0:54:12]} 34. Ra8+ {[%clk 1:02:16]} 34...
Kh7 {[%clk 0:54:28]} 35. Ree8 {[%clk 1:02:32]} 35... Rg4 {[%clk 0:54:46]} 36.
Kh3 {[%clk 1:01:42]} 36... Rc4 {[%clk 0:54:23]} 37. Ra7 {[%clk 1:01:17]} 37...
h5 {[%clk 0:52:11]} 38. f3 {[%clk 1:01:01]} 38... Kh6 {[%clk 0:49:39]} 39. Rh8+
{[%clk 1:00:50]} 39... Kg6 {[%clk 0:49:49]} 40. Rg8 {[%clk 1:01:08]} 40... Rc1
{[%clk 0:49:08]} 41. Rgxg7+ {[%clk 1:00:53]} 41... Kf5 {[%clk 0:49:21]} 42. Ra2
{[%clk 1:00:35]} 42... Rh1+ {[%clk 0:49:05]} 43. Kg2 {[%clk 1:00:34]} 43... Rhd1
{[%clk 0:49:25]} 44. Bf2 {[%clk 1:00:17]} 44... R1d2 {[%clk 0:47:33]} 45. Raa7
{[%clk 0:58:54]} 45... R5d4 {[%clk 0:45:46]} 46. Kg3 {[%clk 0:58:59]} 46... R4d3
{[%clk 0:45:39]} 47. Ra5+ {[%clk 0:58:54]} 47... Rd5 {[%clk 0:45:39]} 48. Rxd5+
{[%clk 0:59:00]} 48... Rxd5 {[%clk 0:46:00]} 49. Be3 {[%clk 0:59:06]} 49... Rd3
{[%clk 0:46:09]} 50. Bf4 {[%clk 0:59:09]} 50... Rd1 {[%clk 0:46:25]} 51. Be3
{[%clk 0:59:33]} 51... Rd3 {[%clk 0:46:48]} 52. Kf2 {[%clk 0:59:28]} 52... Rd5
{[%clk 0:45:57]} 53. Rh7 {[%clk 0:58:36]} 53... Kg6 {[%clk 0:46:13]} 54. Rh6+
{[%clk 0:58:57]} 54... Kg7 {[%clk 0:46:34]} 55. Ke2 {[%clk 0:58:25]} 55... Re5
{[%clk 0:46:55]} 56. Kf2 {[%clk 0:58:09]} 56... Rd5 {[%clk 0:45:53]} 57. Kg3
{[%clk 0:58:19]} 57... Re5 {[%clk 0:45:40]} 58. Bd2 {[%clk 0:57:55]} 58... Rd5
{[%clk 0:45:56]} 59. Bc1 {[%clk 0:57:40]} 59... Rc5 {[%clk 0:46:14]} 60. Kf2
{[%clk 0:57:35]} 60... Rc2+ {[%clk 0:46:13]} 61. Kg3 {[%clk 0:57:43]} 61... Rxc1
{[%clk 0:46:12]} 62. Rxh5 {[%clk 0:57:59]} 62... Kg6 {[%clk 0:45:44]} 63. Rd5
{[%clk 0:57:58]} 63... Rg1+ {[%clk 0:45:48]} 64. Kh2 {[%clk 0:57:49]} 64... Rf1
{[%clk 0:46:08]} 65. Kg2 {[%clk 0:58:14]} 65... Ra1 {[%clk 0:46:28]} 66. Rd4
{[%clk 0:57:49]} 66... Kh5 {[%clk 0:46:25]} 67. Rf4 {[%clk 0:57:57]} 67... Kg6
{[%clk 0:46:32]} 68. Rg4+ {[%clk 0:57:41]} 68... Kh5 {[%clk 0:46:53]} 69. Kg3
{[%clk 0:57:35]} 69... Rg1+ {[%clk 0:47:08]} 70. Kh3 {[%clk 0:57:26]} 70... Rh1+
{[%clk 0:47:27]} 1/2-1/2

[Variant "Standard"]
[Site "Europe Echecs"]